Cogmind - Beta 15 X1 @@@ ROGUE MODE // 2024.11.11 @ 12:32:05 Player: Some Pennies Result: Self-destructed Performance ------------- Evolutions (5) 2500 Regions Visited (16) 3200 Robots Destroyed (135) 675 Value Destroyed (3283) 3283 Prototype IDs (71) 1420 Alien Tech Used (0) 0 Bonus (3753) 3753 TOTAL SCORE: 14831 Bonus ------- High Alert Combat Kills 24 Follower Combat Kills 2239 Network Hubs Disabled 800 Met Data Miner 300 Built Enhanced Grunts 300 Met R17 at Cetus 500 Friendly Fire -410 Cogmind --------- Core Integrity 959/1000 Matter 110/300 Energy 101/150 System Corruption 0% Temperature Cool (4) Movement Flying (24) Location -5/Factory Parts ------- > --- POWER (1) -------- Light Angular Momentum Engine > --- PROPULSION (5) --- Improved Cesium-ion Thruster Improved Cesium-ion Thruster Improved Cesium-ion Thruster Improved Cesium-ion Thruster Biomechanical Wings > --- UTILITY (9) ------ Advanced Heat Sink Medium Storage Unit Advanced Sensor Array Advanced Signal Interpreter Experimental Utility Shielding Improved Hacking Suite Improved Hacking Suite Improved System Shield > --- WEAPON (2) ------- Advanced Datajack Power Sword > --- INVENTORY (10) --- ECM Suite Graphene Brace Authchip [Propulsion] Improved Trap Extractor (4/6 Shock) Advanced Trap Extractor (0/8) Combat Drone Bay (2/2) Cooled Plasma Cannon Improved Plasma Cutter Multitool Peak State ------------ > --- POWER ------------ Light Angular Momentum Engine > --- PROPULSION ------- Improved Cesium-ion Thruster Improved Cesium-ion Thruster Improved Cesium-ion Thruster Improved Cesium-ion Thruster Biomechanical Wings > --- UTILITY ---------- Advanced Heat Sink Medium Storage Unit Advanced Sensor Array Advanced Signal Interpreter Experimental Utility Shielding Improved Light Armor Plating Improved Hacking Suite Improved Hacking Suite Improved System Shield > --- WEAPON ----------- Advanced Datajack Power Sword > --- INVENTORY -------- Light Angular Momentum Engine ECM Suite Graphene Brace Improved Trap Extractor Advanced Trap Extractor Combat Drone Bay Cooled Plasma Cannon Improved Plasma Cutter Multitool [Rating: 88] Favorites ----------- Power Ion Engine Engine Ion Engine Power Core Nuclear Core Reactor Cold Fusion Reactor Propulsion Improved Cesium-ion Thruster Treads Light Treads Leg Enhanced Flexi-carbon Leg Wheel Subdweller Monowheel Flight Unit Improved Cesium-ion Thruster Utility Huge Storage Unit Device Improved Heat Sink Storage Huge Storage Unit Processor Advanced Signal Interpreter Hackware Improved Hacking Suite Protection Improved Light Armor Plating Weapon Subdweller Beam Cannon Energy Gun Advanced Beam Rifle Energy Cannon Subdweller Beam Cannon Ballistic Gun Assault Rifle Ballistic Cannon Slug Cannon Launcher Rocket Launcher Special Weapon Multitool Impact Weapon Makeshift Hammer Slashing Weapon Power Sword Piercing Weapon Heavy Pick Special Melee Weapon Improved Datajack Build | -11 -10 -10 -8 -7 -7 -7 -7 -6 -6 -6 -6 -6 -6 -6 -6 -5 ------- Run | Yrd Mat Sub Mat Fac Low Low Dat Pro Fac Was Fac Ext Cet Arc Hub Fac Slots Evolved 10 | . . . 4 2 . . . . 2 . . . . . . 2 Power . | . . . . . . . . . . . . . . . . . Propulsion 3 | . . . 2 1 . . . . . . . . . . . . Utility 7 | . . . 2 1 . . . . 2 . . . . . . 2 Weapon . | . . . . . . . . . . . . . . . . . Parts Attached 159 | 7 9 15 48 28 2 5 . 4 7 1 9 3 3 2 12 4 Power 16 | 1 . 2 5 . 1 . . 2 1 . 1 . 1 . 1 1 Engine 12 | 1 . 2 3 . 1 . . 2 . . 1 . 1 . . 1 Core 3 | . . . 2 . . . . . 1 . . . . . . . Reactor 1 | . . . . . . . . . . . . . . . 1 . Propulsion 36 | 2 . 4 17 9 . 1 . . . . . . . . 3 . Treads 18 | 2 . 3 13 . . . . . . . . . . . . . Leg 1 | . . . . . . . . . . . . . . . 1 . Wheel 1 | . . 1 . . . . . . . . . . . . . . Hover . | . . . . . . . . . . . . . . . . . Flight 16 | . . . 4 9 . 1 . . . . . . . . 2 . Utility 62 | 2 5 2 12 13 1 2 . 1 6 . 7 2 2 . 5 2 Device 19 | 1 1 . 4 5 . . . 1 1 . 3 1 1 . 1 . Storage 8 | 1 3 . . 3 . . . . . . . . . . 1 . Processor 9 | . . . 2 4 . 1 . . 1 . 1 . . . . . Hackware 10 | . . . 2 . 1 . . . 3 . 1 . . . 1 2 Protection 16 | . 1 2 4 1 . 1 . . 1 . 2 1 1 . 2 . Artifact . | . . . . . . . . . . . . . . . . . Weapon 45 | 2 4 7 14 6 . 2 . 1 . 1 1 1 . 2 3 1 Energy Gun 7 | . . . 6 1 . . . . . . . . . . . . Energy Cannon 14 | . 3 3 2 1 . . . 1 . 1 1 1 . . 1 . Ballistic Gun 7 | 2 . 2 1 . . 1 . . . . . . . . . 1 Ballistic Cannon 2 | . . 1 1 . . . . . . . . . . . . . Launcher 7 | . 1 . 3 2 . 1 . . . . . . . . . . Special Weapon 1 | . . . . 1 . . . . . . . . . . . . Impact Weapon 1 | . . . 1 . . . . . . . . . . . . . Slashing Weapon 1 | . . . . . . . . . . . . . . . 1 . Piercing Weapon 1 | . . . . . . . . . . . . . . . 1 . Special Melee Weapon 4 | . . 1 . 1 . . . . . . . . . 2 . . Unidentified Prototypes 17 | . . . 6 2 . . . . . . 2 . . . 6 1 Parts Lost 8 | . 1 1 2 . 1 . . 1 . . 1 . 1 . . . Power 3 | . 1 . . . . . . . . . 1 . 1 . . . Propulsion 1 | . . 1 . . . . . . . . . . . . . . Utility 4 | . . . 2 . 1 . . 1 . . . . . . . . Weapon . | . . . . . . . . . . . . . . . . . Highest Loss Streak 1 | . 1 1 1 . 1 . . 1 . . 1 . 1 . . . To Critical Strikes . | . . . . . . . . . . . . . . . . . Average Backups 16 | 2 10 21 23 8 9 10 10 10 8 9 9 8 9 8 9 8 Power . | . . . . . 1 1 1 1 1 1 1 . . . 1 . Propulsion 2 | . 2 2 5 1 1 . . . . 1 1 1 2 1 . . Utility 6 | . 3 7 7 4 5 6 6 6 4 4 4 5 5 4 5 4 Weapon 5 | 1 3 9 8 . 1 1 2 2 1 2 1 1 1 1 . 1 Tool/Special . | . . . . . . . . . . . . . . . . . Unused Backups 38 | . 3 6 15 8 . . . . 1 . . . . 1 . 4 Power 1 | . . . . 1 . . . . . . . . . . . . Propulsion 6 | . 1 1 3 . . . . . . . . . . 1 . . Utility 14 | . 1 2 4 4 . . . . . . . . . . . 3 Weapon 14 | . 1 2 8 2 . . . . 1 . . . . . . . Tool/Special 3 | . . 1 . 1 . . . . . . . . . . . 1 Average Slot Usage (%) 97 | . 97 99 91 99 98 98 100 99 95 100 99 99 98 100 99 99 Engine 7 | . 11 13 3 6 7 7 7 7 . . . 6 5 6 5 5 Core 1 | . . . 5 . . . . . 5 6 6 . . . . . Treads 18 | . 28 26 35 . . . . . . . . . . . . . Flight 13 | . . . . 37 38 38 38 38 33 33 33 33 33 33 32 29 Device 9 | . 13 3 10 7 7 6 7 7 18 13 13 12 12 13 13 14 Storage 9 | . 14 14 9 6 7 7 7 7 6 6 6 6 6 6 6 5 Processor 2 | . . . 1 6 7 7 7 6 4 6 6 6 6 6 6 5 Hackware 2 | . . . . 7 5 7 7 7 7 13 10 6 6 6 6 16 Protection 8 | . . 10 8 6 7 7 7 6 3 6 7 12 12 13 12 7 Energy Gun 1 | . . . 6 . . . . . . . . . . . . . Energy Cannon 12 | . 21 27 10 . . . . . . . . . . . . . Impact Weapon 2 | . . . . 6 7 6 7 5 5 6 6 5 6 5 3 . Special Melee Weapon 2 | . . . . 6 7 7 7 7 6 6 6 6 6 6 5 5 Peak Build Rating 88 | 7 13 19 44 52 52 53 52 56 67 68 70 74 74 76 81 88 Average Rating 39 | 4 10 16 38 47 50 51 52 54 62 66 66 69 68 74 75 84 On Entrance 48 | . 7 12 18 39 51 52 52 52 52 66 66 69 69 70 75 73 Naked Turns . | . . . . . . . . . . . . . . . . . Heaviest Build 120 | 14 94 105 120 23 25 23 23 28 29 27 30 39 39 36 44 30 Greatest Support 104 | 40 40 40 104 29 24 24 24 30 30 30 30 30 30 30 30 30 Greatest Overweight (x) 9 | 2 2 5 1 . 1 . . . . . 8 1 5 9 1 . Average Overweight (x) . | . . 2 1 . . . . . . . . . . 4 . . Largest Inventory Capacity 25 | 8 25 25 25 25 10 10 10 10 10 10 10 10 10 10 10 10 Average Capacity 18 | 5 14 25 25 9 10 10 10 10 10 10 10 10 10 10 10 10 Most Carried 25 | 3 16 25 25 24 10 10 10 10 10 10 10 10 10 10 10 10 Average Carried 17 | 2 10 24 24 8 9 9 10 10 9 10 9 9 9 9 9 9 Final Capacity 25 | 8 25 25 25 10 10 10 10 10 10 10 10 10 10 10 10 10 Final Carried 25 | 3 16 25 25 10 10 10 10 10 10 10 9 10 10 10 10 10 Class Distribution -------------------- 58% | Mutant 9% | Sprinter 8% | Commander-Sprinter 7% | Commander-Mutant 6% | Scavenger-Sprinter 4% | Hacker-Sprinter 3% | Scavenger-Mutant Dominant Class ---------------- Mutant | -10/Materials Mutant | -10/Subcaves Mutant | -8/Materials Scavenger-Sprinter | -7/Factory Sprinter | -7/Lower Caves Sprinter | -7/Lower Caves Sprinter | -7/Data Miner Mutant | -6/Proximity Caves Sprinter | -6/Factory Hacker-Sprinter | -6/Waste Hacker-Sprinter | -6/Factory Sprinter | -6/Extension Commander-Sprinter | -6/Cetus Commander-Mutant | -6/Archives Commander-Sprinter | -6/Hub_04(d) Hacker-Sprinter | -5/Factory Resources | -11 -10 -10 -8 -7 -7 -7 -7 -6 -6 -6 -6 -6 -6 -6 -6 -5 ----------- Run | Yrd Mat Sub Mat Fac Low Low Dat Pro Fac Was Fac Ext Cet Arc Hub Fac Matter Collected 3634 | 324 177 570 712 590 68 . . 253 70 110 170 185 65 50 290 . Remotely . | . . . . . . . . . . . . . . . . . Salvage Created 6588 | 145 644 620 2169 599 . 176 . 206 103 . 724 468 . 232 502 . Parts 256 | 8 34 37 101 20 . 1 . 7 1 . 6 10 . 20 11 . Haulers Intercepted 18 | . 1 . 6 6 . . . . . . 4 . . . 1 . Recyclers Shooed 10 | . 4 . 2 1 . . . . . . . 1 . . 2 . Parts Field Recycled . | . . . . . . . . . . . . . . . . . Retrieved Matter . | . . . . . . . . . . . . . . . . . Parts Self-Destructed 23 | . . 18 . . . 1 . 4 . . . . . . . . Prevented . | . . . . . . . . . . . . . . . . . Kills | -11 -10 -10 -8 -7 -7 -7 -7 -6 -6 -6 -6 -6 -6 -6 -6 -5 ------- Run | Yrd Mat Sub Mat Fac Low Low Dat Pro Fac Was Fac Ext Cet Arc Hub Fac Combat Hostiles Destroyed 61 | . 12 14 26 . . . . 7 . . . . . . 2 . Melee 1 | . . . 1 . . . . . . . . . . . . . Guns 13 | . 1 1 11 . . . . . . . . . . . . . Cannons 32 | . 8 10 10 . . . . 2 . . . . . . 2 . AOE 13 | . 3 3 2 . . . . 5 . . . . . . . . Classes Destroyed 16 | 2 5 2 6 . . . . 1 . . . . . . . . Worker 6 | . . . 3 1 . . . . . . 1 . . . 1 . Builder 5 | . . . 1 1 . . . . . . . 1 . . 2 . Tunneler 4 | 3 . . 1 . . . . . . . . . . . . . Hauler 18 | . 1 . 6 6 . . . . . . 4 . . . 1 . Recycler 24 | 1 4 . 7 4 . . . . 1 . 3 3 . . 1 . Operator 9 | . 1 . . . . . . . . . . . . 7 1 . Watcher 8 | . 1 . 3 . . . . . . . . 2 . . 2 . Swarmer 15 | . 6 3 3 . . . . 3 . . . . . . . . Grunt 22 | . 6 . 11 . . . . 3 . . . . . . 2 . Duelist 1 | . . . . . . . . 1 . . . . . . . . Sentry 6 | . . . 6 . . . . . . . . . . . . . Specialist 4 | . . . 4 . . . . . . . . . . . . . Hunter 1 | . . . 1 . . . . . . . . . . . . . Heavy 1 | . . . 1 . . . . . . . . . . . . . Artisan 2 | . . 2 . . . . . . . . . . . . . . Subdweller 11 | . . 11 . . . . . . . . . . . . . . Best Kill Streak 7 | 4 7 3 4 4 . . . 5 1 . 3 2 . 3 3 . Combat Bots Only 5 | . 5 3 3 . . . . 5 . . . . . . 2 . Max Kills in Single Turn 3 | 1 3 1 2 1 . . . 2 1 . 1 1 . 1 1 . Gunslinging . | . . . . . . . . . . . . . . . . . Exploded 2 | . 2 1 1 . . . . 2 . . . . . . . . Melee 1 | . . . 1 . . . . . . . . . . . . . Uniques/NPCs Destroyed . | . . . . . . . . . . . . . . . . . Combat | -11 -10 -10 -8 -7 -7 -7 -7 -6 -6 -6 -6 -6 -6 -6 -6 -5 -------- Run | Yrd Mat Sub Mat Fac Low Low Dat Pro Fac Was Fac Ext Cet Arc Hub Fac Hostile Shots Fired 431 | . 47 46 158 1 5 . . 22 10 . 51 50 . . 30 11 Missed 164 | . 8 17 40 . 4 . . 4 8 . 38 26 . . 17 2 Damage Taken 4821 | . 410 485 2220 17 248 . . 304 17 . 180 211 24 . 491 214 Core 709 | . 59 84 218 17 51 . . 68 12 . 34 17 . . 108 41 Absorbed by Shields 77 | . . . . . . . . 77 . . . . . . . . Redirected to Shielding 113 | . . . . . . . . . . . . 37 . . 41 35 Regen/Repaired (Parts) 974 | . . . 527 283 . . . . . . 164 . . . . . Core Remaining (%) 72 | 100 . 42 60 . . . . 80 . . . . . . 79 . Volleys Fired 303 | 11 45 66 111 5 . . . 14 2 . . 13 . 25 11 . Largest 2 | 2 2 2 2 1 . . . 1 1 . . 1 . 1 1 . Hottest 160 | 40 136 160 160 30 . . . 85 85 . . 90 . 90 35 . Shots Fired 495 | 22 88 102 213 5 . . . 14 2 . . 13 . 25 11 . Gun 105 | 22 11 4 68 . . . . . . . . . . . . . Cannon 365 | . 75 87 142 . . . . 10 2 . . 13 . 25 11 . Launcher 20 | . 2 11 3 . . . . 4 . . . . . . . . Special 5 | . . . . 5 . . . . . . . . . . . . Kinetic 37 | 22 11 4 . . . . . . . . . . . . . . Thermal 438 | . 75 87 210 5 . . . 10 2 . . 13 . 25 11 . Explosive 20 | . 2 11 3 . . . . 4 . . . . . . . . Electromagnetic . | . . . . . . . . . . . . . . . . . Robot Hit Streak 30 | 10 13 25 30 4 . . . 12 . . . . . 8 9 . Robot Miss Streak 8 | 2 2 3 8 1 . . . 2 . . . . . 3 . . Penetration Max . | . . . . . . . . . . . . . . . . . Secondary Targets . | . . . . . . . . . . . . . . . . . Shots Hit Robots 430 | 15 54 54 147 30 . 6 1 10 1 . 26 46 3 23 14 . Core Hits 155 | 7 21 24 61 7 . 1 . 14 . . 3 2 . 12 3 . Critical Kills 3 | . . 1 1 . . . . . . . . . . 1 . . Critical Parts Destroyed 11 | . . . 1 2 . 2 . . . . 3 1 . . 2 . Critical Strikes 21 | . . 1 9 2 . 2 . . . . 3 1 . 1 2 . Burn 7 | . . . 7 . . . . . . . . . . . . . Meltdown 3 | . . 1 1 . . . . . . . . . . 1 . . Smash 11 | . . . 1 2 . 2 . . . . 3 1 . . 2 . Melee Attacks 225 | . . . 7 36 6 7 1 3 12 . 48 56 3 4 35 7 Impact 155 | . . . 4 26 6 6 . 2 12 . 46 26 . 2 25 . Slashing 11 | . . . . . . . . . . . . . . . 4 7 Piercing 8 | . . . 3 . . . . . . . . . . . 5 . Sneak Attacks 81 | . . . . 17 . 1 1 1 1 . 10 35 3 4 8 . Combat Hostiles 2 | . . . . . . . . . . . . . 2 . . . Follow-up Attacks . | . . . . . . . . . . . . . . . . . Damage Inflicted 14043 | 154 1369 1636 3584 1517 . 454 . 806 84 . 1705 1006 . 742 986 . Guns 1311 | 154 69 15 1073 . . . . . . . . . . . . . Cannons 5290 | . 1054 1124 2122 . . . . 245 . . . . . 616 129 . Explosions 1582 | . 239 497 285 . . . . 561 . . . . . . . . Melee 5792 | . . . 75 1485 . 454 . . 84 . 1705 1006 . 126 857 . Ramming 36 | . 7 . 29 . . . . . . . . . . . . . Kinetic 238 | 154 69 15 . . . . . . . . . . . . . . Thermal 6395 | . 1054 1124 3195 32 . . . 245 . . . . . 616 129 . Explosive 1582 | . 239 497 285 . . . . 561 . . . . . . . . Electromagnetic . | . . . . . . . . . . . . . . . . . Impact 5666 | . . . 72 1485 . 454 . . 84 . 1705 1006 . 126 734 . Slashing 84 | . . . . . . . . . . . . . . . 84 . Piercing 42 | . . . 3 . . . . . . . . . . . 39 . Highest Corruption 4 | . 4 4 . . 1 1 1 1 . . . . . . 3 . Average Corruption 3 | . 3 4 . . 1 1 1 1 . . . . . . 2 . Corruption Purged . | . . . . . . . . . . . . . . . . . Corruption Blocked . | . . . . . . . . . . . . . . . . . Effects 134 | . 19 110 . . 3 1 . 1 . . . . . . . . Message Errors 36 | . 4 30 . . 1 1 . . . . . . . . . . Matter Fused 28 | . 5 21 . . 1 . . 1 . . . . . . . . Heat Flow Errors 23 | . 3 19 . . 1 . . . . . . . . . . . Energy Discharges 10 | . 2 8 . . . . . . . . . . . . . . Parts Rejected 1 | . . 1 . . . . . . . . . . . . . . Parts Fused 3 | . . 3 . . . . . . . . . . . . . . Data Loss (minor) 19 | . 4 15 . . . . . . . . . . . . . . Data Loss (major) 6 | . . 6 . . . . . . . . . . . . . . Misfires 4 | . . 4 . . . . . . . . . . . . . . Alerts 4 | . 1 3 . . . . . . . . . . . . . . Overload Shots . | . . . . . . . . . . . . . . . . . Overflow Damage 2290 | . 31 30 54 493 . 276 . . 54 . 583 300 . 9 460 . Projectiles 65 | . 3 29 20 . . . . . . . . . . 9 4 . Explosions 29 | . 28 1 . . . . . . . . . . . . . . Melee 2196 | . . . 34 493 . 276 . . 54 . 583 300 . . 456 . Knockbacks 13 | . . . . 1 . . . . 1 . 3 4 . 1 3 . Impact 12 | . . . . 1 . . . . 1 . 3 4 . 1 2 . Kinetic . | . . . . . . . . . . . . . . . . . Secondary 1 | . . . . . . . . . . . . . . . 1 . Self-Inflicted Damage . | . . . . . . . . . . . . . . . . . Shots . | . . . . . . . . . . . . . . . . . Rammed 4 | . 1 . 3 . . . . . . . . . . . . . Targets Rammed 5 | . 1 . 4 . . . . . . . . . . . . . Kicked . | . . . . . . . . . . . . . . . . . Crushed 1 | . . . 1 . . . . . . . . . . . . . Highest Temperature 333 | . 333 264 333 60 186 . . 88 50 . 56 . . 80 . . Average Temperature 76 | . 112 75 81 24 142 . . 37 20 . 24 . . 25 . . Received Heat Transfer 1240 | . 156 42 792 9 . . . 97 6 . 18 66 . . 27 27 Effects 5 | . . . 5 . . . . . . . . . . . . . Shutdowns 1 | . . . 1 . . . . . . . . . . . . . Energy Bleed 1 | . . . 1 . . . . . . . . . . . . . Interference 3 | . . . 3 . . . . . . . . . . . . . Siege Activations . | . . . . . . . . . . . . . . . . . Martial Activations . | . . . . . . . . . . . . . . . . . Shielding Activations . | . . . . . . . . . . . . . . . . . Robots Disrupted . | . . . . . . . . . . . . . . . . . Combat Hostiles . | . . . . . . . . . . . . . . . . . Robots Corrupted 18 | . . . . 4 . . . . 1 . 5 3 . . 5 . Combat Hostiles . | . . . . . . . . . . . . . . . . . Parts Fried 34 | . . . . 6 . 2 . . 3 . 8 6 . . 9 . Impact Corruptions 70 | . . . 1 12 . 9 . . 1 . 18 11 . . 18 . Robots Melted 4 | . . 1 2 . . . . . . . . . . 1 . . Combat Hostiles 2 | . . . 2 . . . . . . . . . . . . . Parts Melted 33 | . 2 5 24 . . . . 1 . . . . . 1 . . Heat Transferred 10786 | . 1813 1665 5762 100 . . . 296 . . . . . 950 200 . Parts Sabotaged . | . . . . . . . . . . . . . . . . . Parts Stolen . | . . . . . . . . . . . . . . . . . Parts Stripped . | . . . . . . . . . . . . . . . . . Power Chain Reactions . | . . . . . . . . . . . . . . . . . Alert | -11 -10 -10 -8 -7 -7 -7 -7 -6 -6 -6 -6 -6 -6 -6 -6 -5 ------- Run | Yrd Mat Sub Mat Fac Low Low Dat Pro Fac Was Fac Ext Cet Arc Hub Fac Maximum Alert Level 4 | . 1 . 1 . . . . . . . . 2 2 1 4 2 Low Security (%) 80 | 100 83 . 87 100 . . . . 100 100 100 81 . 66 52 . Level 1 12 | . 16 . 12 . . . . . . . . 8 65 33 1 16 Level 2 5 | . . . . . . . . . . . . 9 34 . 33 83 Level 3 . | . . . . . . . . . . . . . . . 2 . Level 4 . | . . . . . . . . . . . . . . . 10 . Level 5 . | . . . . . . . . . . . . . . . . . High Security . | . . . . . . . . . . . . . . . . . Max Security . | . . . . . . . . . . . . . . . . . Peak Influence 1247 | 10 242 . 363 164 . . . . 129 . 157 508 451 343 1247 616 Initial 576 | . . . . 164 . . . . 116 . . 71 268 164 . 576 Average 122 | 1 89 . 75 47 . . . . 77 . 37 137 361 130 403 537 Influence Increases 6282 | 20 523 120 996 244 90 10 . 235 61 . 571 847 303 280 1883 99 Destroy 0b10 Robot/C 2020 | . 240 60 520 . . . . 140 . . . 340 140 80 500 . Destroy 0b10 Robot/NC 425 | 20 35 . 105 60 . 10 . . 5 . 50 30 10 35 65 . Destroy Leader 434 | . 64 . 158 8 . . . 20 . . 8 24 . . 152 . Allied During Kill 1131 | . . . 1 . . . . . . . . 290 149 115 576 . Trap Triggered on 0b10 40 | . . . . 10 . . . . . . . 30 . . . . Successful Hack 375 | . 40 . 80 57 . . . . 28 . 76 33 . . 21 40 Select Force Hacks 90 | . 60 . 30 . . . . . . . . . . . . . Disable Machine 270 | . 15 . 15 . . . . . . . . . . 30 210 . Destroy Structure 387 | . 9 . 42 4 . . . . 13 . 17 10 4 5 269 14 Partial Spotted 375 | . . . . 75 . . . . 15 . 60 90 . 15 75 45 Lose Combat Pursuer 735 | . 60 60 45 30 90 . . 75 . . 360 . . . 15 . Influence Decreases 4374 | 20 331 219 633 392 63 38 . 50 177 . 424 438 160 444 705 280 Time Decay 3491 | 20 321 219 563 372 63 38 . 40 167 . 330 309 130 424 365 130 Lost Part 59 | . 10 . 19 . . . . 10 . . 10 . 10 . . . Lost Ally 419 | . . . . 20 . . . . 10 . 30 129 20 20 190 . Purge Threat 405 | . . . 51 . . . . . . . 54 . . . 150 150 Squads Dispatched 33 | . 3 . 6 7 . . . . 1 . 5 1 . . 7 3 Investigation 12 | . 2 . 2 2 . . . . . . 4 . . . . 2 Extermination 2 | . . . . 1 . . . . . . . . . . 1 . Reinforcement 17 | . 1 . 3 3 . . . . 1 . 1 1 . . 6 1 Assault . | . . . . . . . . . . . . . . . . . Garrison 2 | . . . 1 1 . . . . . . . . . . . . Intercept . | . . . . . . . . . . . . . . . . . Searches Triggered . | . . . . . . . . . . . . . . . . . Construction Impeded 2 | . . . . . . . . . . . . 1 . . 1 . Haulers Reinforced 2 | . . . . 1 . . . . . . 1 . . . . . Active Scanning Responses . | . . . . . . . . . . . . . . . . . Cargo Convoy Interrupts . | . . . . . . . . . . . . . . . . . Stealth | -11 -10 -10 -8 -7 -7 -7 -7 -6 -6 -6 -6 -6 -6 -6 -6 -5 --------- Run | Yrd Mat Sub Mat Fac Low Low Dat Pro Fac Was Fac Ext Cet Arc Hub Fac Distress Signals 16 | . 2 . 1 . . . . 4 . . 4 1 2 . 2 . Communications Jammed . | . . . . . . . . . . . . . . . . . Distress Signals . | . . . . . . . . . . . . . . . . . Times Spotted 243 | . 17 15 38 13 8 . . 11 9 1 39 16 8 19 36 13 Peak Tracking Total 9 | . 4 3 4 3 3 . . 7 7 1 7 3 5 2 9 4 Tactical Retreats 29 | . 2 2 3 1 3 . . 2 1 . 10 . . . 1 4 Traps | -11 -10 -10 -8 -7 -7 -7 -7 -6 -6 -6 -6 -6 -6 -6 -6 -5 ------- Run | Yrd Mat Sub Mat Fac Low Low Dat Pro Fac Was Fac Ext Cet Arc Hub Fac Traps Triggered 13 | . 3 . 6 . . . . 2 1 . . . . . . 1 Indirectly . | . . . . . . . . . . . . . . . . . Trap Hack Attempts 138 | . . . . 70 . . . . . . . 68 . . . . Triggered . | . . . . . . . . . . . . . . . . . Disarmed 1 | . . . . . . . . . . . . 1 . . . . Reprogrammed 14 | . . . . 10 . . . . . . . 4 . . . . Reused 4 | . . . . 1 . . . . . . . 3 . . . . Traps Extracted 8 | . . . . 6 . . . . . . . 2 . . . . Installed 4 | . . . . . . . . . . . . 4 . . . . Triggered 4 | . . . . 1 . . . . . . . 3 . . . . Most Traps Carried 6 | . . . . 6 6 6 6 6 6 6 6 6 4 4 4 4 Machines | -11 -10 -10 -8 -7 -7 -7 -7 -6 -6 -6 -6 -6 -6 -6 -6 -5 ---------- Run | Yrd Mat Sub Mat Fac Low Low Dat Pro Fac Was Fac Ext Cet Arc Hub Fac Machines Disabled 21 | . 1 3 1 . . . . . . . . . . 2 14 . Max in Single Turn 2 | . 1 2 1 . . . . . . . . . . . 1 . Garrison Access 8 | . . . . 3 . . . . . . 2 . . . 2 1 Network Hub 4 | . . . . . . . . . . . . . . . 4 . Machines Repaired . | . . . . . . . . . . . . . . . . . Machines Dismantled . | . . . . . . . . . . . . . . . . . Machines Sabotaged . | . . . . . . . . . . . . . . . . . Overloaded Fab Kills . | . . . . . . . . . . . . . . . . . Hacking | -11 -10 -10 -8 -7 -7 -7 -7 -6 -6 -6 -6 -6 -6 -6 -6 -5 --------- Run | Yrd Mat Sub Mat Fac Low Low Dat Pro Fac Was Fac Ext Cet Arc Hub Fac Machines Accessed 94 | . 9 2 17 19 . 3 4 . 5 . 18 4 . . 8 5 Terminals 56 | . 7 . 11 11 . . . . 4 . 10 4 . . 6 3 Fabricators 4 | . . . . 2 . . . . 1 . . . . . . 1 Repair Stations 6 | . . . 2 1 . . . . . . 3 . . . . . Recycling Units 6 | . 2 . 2 1 . . . . . . 1 . . . . . Scanalyzers 4 | . . . 2 1 . . . . . . 1 . . . . . Garrison Access 9 | . . . . 3 . . . . . . 3 . . . 2 1 Total Hacks 340 | . 36 6 67 49 . 7 27 . 17 . 61 17 . . 16 37 Successful 210 | . 19 6 45 34 . 7 27 . 9 . 30 9 . . 6 18 Failed 130 | . 17 . 22 15 . . . . 8 . 31 8 . . 10 19 Catastrophic 13 | . . . 2 . . . . . 2 . 3 1 . . 1 4 Database Lockouts . | . . . . . . . . . . . . . . . . . Manual 181 | . 23 . 28 25 . . . . 13 . 39 15 1 . 8 29 Terminals 204 | . 31 . 38 22 . . . . 12 . 40 17 . . 11 33 Fabricators 16 | . . . . 8 . . . . 5 . . . . . . 3 Repair Stations 20 | . . . 11 2 . . . . . . 7 . . . . . Recycling Units 16 | . 5 . 5 3 . . . . . . 3 . . . . . Scanalyzers 25 | . . . 13 9 . . . . . . 3 . . . . . Garrison Access 19 | . . . . 5 . . . . . . 8 . . . 5 1 Terminal Hacks 85 | . 10 6 8 4 . 7 27 . 1 . 9 3 . . 3 7 Record 22 | . . 5 . . . 5 11 . . . . . . . . 1 Part Schematic 8 | . . . . . . . 8 . . . . . . . . . Robot Schematic 5 | . . . . . . . 5 . . . . . . . . . Robot Analysis 3 | . 3 . . . . . . . . . . . . . . . Prototype ID Bank 14 | . 3 . 2 3 . . 3 . . . 1 1 . . . 1 Open Door 2 | . . . . . . 2 . . . . . . . . . . Branch Access Points 3 | . . . 1 . . . . . . . 1 . . . . 1 Emergency Access Points 1 | . 1 . . . . . . . . . . . . . . . Terminal Index 7 | . 1 . 1 1 . . . . 1 . 1 1 . . . 1 Repair Station Index 1 | . . . . . . . . . . . 1 . . . . . Alert Level 4 | . . . 1 . . . . . . . 1 . . . 1 1 Unreport Threat 4 | . . . 1 . . . . . . . 1 . . . 1 1 Locate Traps 3 | . 1 . 1 . . . . . . . 1 . . . . . Recall Investigation 1 | . . . . . . . . . . . . . . . . 1 Hauler Manifests 1 | . . . . . . . . . . . 1 . . . . . Zone Layout 5 | . 1 . 1 . . . . . . . 1 1 . . 1 . Derelict Proto ID Bank 1 | . . 1 . . . . . . . . . . . . . . Fabricator Hacks 10 | . . . . 4 . . . . 4 . . . . . . 2 Network Status 3 | . . . . 2 . . . . . . . . . . . 1 Load Schematic 5 | . . . . 2 . . . . 2 . . . . . . 1 Build 2 | . . . . . . . . . 2 . . . . . . . Repair Station Hacks 15 | . . . 10 2 . . . . . . 3 . . . . . Scan Component 8 | . . . 5 1 . . . . . . 2 . . . . . Repair 7 | . . . 5 1 . . . . . . 1 . . . . . Recycling Unit Hacks 3 | . 1 . 2 . . . . . . . . . . . . . Retrieve Components 3 | . 1 . 2 . . . . . . . . . . . . . Scanalyzer 23 | . . . 11 9 . . . . . . 3 . . . . . Insert Component 9 | . . . 5 3 . . . . . . 1 . . . . . Analyze 14 | . . . 6 6 . . . . . . 2 . . . . . Garrison Access Hacks 8 | . . . . 3 . . . . . . 2 . . . 2 1 Seal Access 8 | . . . . 3 . . . . . . 2 . . . 2 1 Unauthorized Hacks 66 | . 8 . 14 12 . . . . 4 . 13 6 . . 1 8 Terminals 55 | . 6 . 13 8 . . . . 3 . 11 6 . . 1 7 Track 1 | . . . . . . . . . . . . 1 . . . . Assimilate 8 | . . . . 2 . . . . 1 . 3 1 . . 1 . Botnet 10 | . 1 . 1 1 . . . . 1 . 2 2 . . . 2 Disrupt 2 | . . . 1 . . . . . . . . 1 . . . . Operators 4 | . . . . . . . . . . . 1 1 . . . 2 Skim 30 | . 5 . 11 5 . . . . 1 . 5 . . . . 3 Fabricators 4 | . . . . 2 . . . . 1 . . . . . . 1 Prioritize 1 | . . . . . . . . . 1 . . . . . . . Recompile 3 | . . . . 2 . . . . . . . . . . . 1 Repair Stations 1 | . . . . . . . . . . . 1 . . . . . Patch 1 | . . . . . . . . . . . 1 . . . . . Recycling Units 6 | . 2 . 1 2 . . . . . . 1 . . . . . Reject 1 | . . . . 1 . . . . . . . . . . . . Recyclers 1 | . . . . 1 . . . . . . . . . . . . Mask 1 | . . . . . . . . . . . 1 . . . . . Tunnel 3 | . 2 . 1 . . . . . . . . . . . . . Scanalyzers . | . . . . . . . . . . . . . . . . . Garrison Access . | . . . . . . . . . . . . . . . . . Data Cores Recovered 1 | . . . . . . . . . . . . . . . 1 . Used . | . . . . . . . . . . . . . . . . . Hacking Detections 76 | . 9 . 16 16 . . . . 5 . 17 4 . . 7 2 Full Trace Events 4 | . . . . . . . . . . . 3 . . . . 1 Feedback Events . | . . . . . . . . . . . . . . . . . Feedback Blocked . | . . . . . . . . . . . . . . . . . Robot Schematics Acquired 5 | . . . . . . . 5 . . . . . . . . . Robots Built . | . . . . . . . . . . . . . . . . . Authchips . | . . . . . . . . . . . . . . . . . Time . | . . . . . . . . . . . . . . . . . Total Robot Build Rating . | . . . . . . . . . . . . . . . . . Part Schematics Acquired 17 | . . . 5 3 . . 8 . . . 1 . . . . . Parts Built 2 | . . . . . . . . . 2 . . . . . . . Authchips 2 | . . . . . . . . . 2 . . . . . . . Time 151 | . . . . . . . . . 151 . . . . . . . Total Part Build Rating 10 | . . . . . . . . . 10 . . . . . . . Parts Repaired 7 | . . . 5 1 . . . . . . 1 . . . . . Time 202 | . . . 138 26 . . . . . . 38 . . . . . Parts Recycled . | . . . . . . . . . . . . . . . . . Recycled Matter . | . . . . . . . . . . . . . . . . . Retrieved Matter . | . . . . . . . . . . . . . . . . . Retrieved Components 28 | . 10 . 18 . . . . . . . . . . . . . Parts Scanalyzed 9 | . . . 5 3 . . . . . . 1 . . . . . Part Schematics Acquired 9 | . . . 5 3 . . . . . . 1 . . . . . Parts Damaged 1 | . . . 1 . . . . . . . . . . . . . Bothacking | -11 -10 -10 -8 -7 -7 -7 -7 -6 -6 -6 -6 -6 -6 -6 -6 -5 ------------ Run | Yrd Mat Sub Mat Fac Low Low Dat Pro Fac Was Fac Ext Cet Arc Hub Fac Used RIF Installer . | . . . . . . . . . . . . . . . . . Robots Hacked 13 | . . . . 6 . 1 1 1 . . 1 . 1 2 . . Non-combat 9 | . . . . 5 . . . 1 . . 1 . . 2 . . Combat 4 | . . . . 1 . 1 1 . . . . . 1 . . . Robot Hacks Applied 16 | . . . . 8 . 1 1 1 . . 2 . 1 2 . . parse_system 8 | . . . . 4 . 1 1 1 . . . . 1 . . . no_distress 2 | . . . . 2 . . . . . . . . . . . . find_chute 1 | . . . . 1 . . . . . . . . . . . . find_fabricator 1 | . . . . . . . . . . . 1 . . . . . find_dsf 1 | . . . . . . . . . . . 1 . . . . . check_alert 3 | . . . . 1 . . . . . . . . . 2 . . Relay Couplers Released . | . . . . . . . . . . . . . . . . . Fabnet Peak Effective % . | . . . . . . . . . . . . . . . . . Robots Rewired 15 | . . . . . . . . . . . . 14 1 . . . Allies Hacked . | . . . . . . . . . . . . . . . . . Hacks Repelled . | . . . . . . . . . . . . . . . . . Allies | -11 -10 -10 -8 -7 -7 -7 -7 -6 -6 -6 -6 -6 -6 -6 -6 -5 -------- Run | Yrd Mat Sub Mat Fac Low Low Dat Pro Fac Was Fac Ext Cet Arc Hub Fac Total Allies 36 | . . . 1 2 . . . . 1 . 3 22 6 . 1 . Largest Group 14 | . . . 1 1 . . . . 1 . 2 13 14 13 13 . Highest-Rated Group 929 | . . . 16 26 . . . . 26 . 52 530 929 777 774 . Highest-Rated Ally 159 | . . . 16 26 . . . . 26 . 26 159 159 96 96 . Total Orders 15 | . . . . . . . . . . . . 2 2 2 9 . STAY 5 | . . . . . . . . . . . . . . 1 4 . FOLLOW 2 | . . . . . . . . . . . . . . 1 1 . RETURN 8 | . . . . . . . . . . . . 2 2 . 4 . Ally Attacks 350 | . . . 3 . . . . . . . . 108 69 42 128 . Total Damage 8933 | . . . 36 . . . . . . . . 1997 1798 1121 3981 . Kills 65 | . . . . . . . . . . . . 18 12 4 31 . Allies Corrupted 3 | . . . . . . . . . . . . . . . 3 . Allies Melted 1 | . . . . . . . . . . . . 1 . . . . Intel | -11 -10 -10 -8 -7 -7 -7 -7 -6 -6 -6 -6 -6 -6 -6 -6 -5 ------- Run | Yrd Mat Sub Mat Fac Low Low Dat Pro Fac Was Fac Ext Cet Arc Hub Fac Active Infowar (turns) 8655 | 29 755 863 398 1131 457 183 27 91 327 60 771 778 217 1430 877 261 Sensors 6639 | . . . 48 1114 457 183 27 91 327 60 769 778 217 1430 877 261 Seismic 1997 | 29 755 863 350 . . . . . . . . . . . . . Machine Analysis 140 | . . . . 140 . . . . . . . . . . . . ECM 280 | . . . . 2 17 . . . 39 . 51 . . . 8 163 Robot Analysis Total 3 | . 3 . . . . . . . . . . . . . . . Derelict Logs Recovered 5 | . . 1 . . 1 1 . 2 . . . . . . . . Drone Launches 10 | . . . . . . . . . . . . 3 2 . 5 . Drone Recoveries 10 | . . . . . . . . . . . . 3 2 . 5 . Exploration | -11 -10 -10 -8 -7 -7 -7 -7 -6 -6 -6 -6 -6 -6 -6 -6 -5 ------------- Run | Yrd Mat Sub Mat Fac Low Low Dat Pro Fac Was Fac Ext Cet Arc Hub Fac Turns Passed 18006 | 144 1354 5082 4534 1164 457 190 27 155 354 60 777 825 276 1430 916 261 Spaces Moved 15451 | 72 603 1613 1546 2196 977 557 99 310 724 244 1950 1243 269 507 1985 556 Core 262 | 18 . . . . . . . . . . 7 . 8 229 . . Treads 3537 | 54 603 1334 1546 . . . . . . . . . . . . . Legs . | . . . . . . . . . . . . . . . . . Wheels 279 | . . 279 . . . . . . . . . . . . . . Hover . | . . . . . . . . . . . . . . . . . Flight 11373 | . . . . 2196 977 557 99 310 724 244 1943 1243 261 278 1985 556 Fastest Speed 23 | 50 160 150 235 23 26 26 26 23 23 23 23 23 23 23 23 24 Average Speed 89 | 136 190 292 242 26 27 26 26 23 23 23 24 23 32 253 23 24 Slowest Speed 500 | 160 320 320 247 29 91 26 26 26 23 23 450 88 300 500 88 24 Overloaded Moves . | . . . . . . . . . . . . . . . . . Propulsion Burnouts . | . . . . . . . . . . . . . . . . . Robots Hopped 22 | . . . . 8 . . . 1 3 . 6 . . . 4 . Cave-ins Triggered 1 | . . . . . 1 . . . . . . . . . . . Exploration Rate (%) 63 | 5 93 73 97 54 84 62 75 39 14 87 58 69 56 98 96 16 Regions Visited 16 Branch Regions 9 Pre-discovered Areas 14 | . 3 . 4 3 . 2 1 . . . 1 . . . . . Known Exits Taken 11 | . . . 1 1 1 1 1 1 . . 1 1 1 1 1 . Unknown Exits Taken 3 | 1 1 1 . . . . . . . . . . . . . . Scrap Searched 20 | . . 9 . . 5 3 . 3 . . . . . . . . Spaces Dug 92 | . . 1 . 4 6 1 . 2 13 . 17 15 . . 26 7 Terrain Destroyed 277 | . 11 91 44 4 6 1 . 35 13 . 17 17 . 5 26 7 Melee 71 | . . . . 4 6 1 . 2 11 . 17 4 . . 19 7 Projectile 58 | . . 4 25 . . . . 2 2 . . 13 . 5 7 . AOE 148 | . 11 87 19 . . . . 31 . . . . . . . . Terrain Rammed . | . . . . . . . . . . . . . . . . . Walls Destroyed . | . . . . . . . . . . . . . . . . . Machines Disabled . | . . . . . . . . . . . . . . . . . Actions | -11 -10 -10 -8 -7 -7 -7 -7 -6 -6 -6 -6 -6 -6 -6 -6 -5 --------- Run | Yrd Mat Sub Mat Fac Low Low Dat Pro Fac Was Fac Ext Cet Arc Hub Fac Total 18977 | 95 723 1884 2123 2741 1161 595 99 369 893 247 2191 1736 457 624 2375 664 Wait 2192 | . 32 131 271 322 175 13 . 24 129 . 166 333 170 75 293 58 Move 15395 | 71 602 1612 1545 2179 976 556 98 307 719 243 1938 1242 268 506 1977 556 Hop 19 | . . . . 8 . . . 1 2 . 5 . . . 3 . Pick Up 128 | 4 19 23 39 17 . 1 . . 6 . 1 3 3 4 5 3 Fast Attach 119 | 6 4 10 38 17 1 8 . . 3 2 9 . 3 . 14 4 Attach 41 | 2 . 2 8 10 1 . . . 3 . 1 3 3 2 4 2 Detach 14 | 1 1 1 6 2 1 . . . . . . 1 . . 1 . Swap 142 | . 8 17 24 24 1 1 . 10 10 . 12 10 1 3 11 10 Drop 222 | . 11 22 70 50 . 9 . 2 7 2 11 3 6 5 21 3 Fire 303 | 11 45 66 111 5 . . . 14 2 . . 13 . 25 11 . Melee 225 | . . . 7 36 6 7 1 3 12 . 48 56 3 4 35 7 Ram . | . . . . . . . . . . . . . . . . . Kick . | . . . . . . . . . . . . . . . . . Crush 5 | . 1 . 4 . . . . . . . . . . . . . Escape Stasis 26 | . . . . . . . . 8 . . . . . . . 18 Rewire . | . . . . . . . . . . . . . . . . . Trap 142 | . . . . 70 . . . . . . . 72 . . . . Miscellaneous 4 | . . . . 1 . . . . . . . . . . . 3 Route ------- -11/Scrapyard -10/Materials (discovered 6 exits: *Mat x3 / *Min x2 / *Sub) -10/Subcaves (discovered 4 exits: *Mat x2 / [*Rec] / [*Scr]) -8/Materials (discovered 3 exits: *Fac x3) -7/Factory (discovered 6 exits: *Fac x4 / *Low x2) -7/Lower Caves -7/Lower Caves (discovered 2 exits: *Fac / *Dat) -7/Data Miner -6/Proximity Caves -6/Factory (discovered 3 exits: *Fac / Low / Ext) -6/Waste -6/Factory (discovered 7 exits: *Fac x3 / *Low x2 / *Ext x2) -6/Extension (discovered 3 exits: *Fac x2 / *Cet) -6/Cetus (discovered 2 exits: *Fac / *Arc) -6/Archives (discovered 3 exits: *Fac / *Hub x2) -6/Hub_04(d) (discovered 4 exits: *Fac x4) -5/Factory (discovered 2 exits: Upp x2) History --------- Turn | Location | Event 8 | -11/Scrapyard | Discovered new exit (range 15) 145 | -11/Scrapyard | Entered Materials 146 | -10/Materials | Met a group of wandering Federalists 196 | -10/Materials | Discovered new exit (range 14) 334 | -10/Materials | Build established: Mutant 356 | -10/Materials | Discovered new exit (range 11) 476 | -10/Materials | Discovered new exit (range 16) 767 | -10/Materials | Discovered new exit (range 16) 898 | -10/Materials | Discovered new exit (range 10) 974 | -10/Materials | Learned 4 Recycling zone layouts 1030 | -10/Materials | Learned 2 Storage zone layouts 1044 | -10/Materials | Learned Storage stockpile data 1051 | -10/Materials | Identified exit to Materials 1076 | -10/Materials | Identified exit to Mines 1136 | -10/Materials | Learned location of Subcaves (-10) 1499 | -10/Materials | Entered Subcaves 1500 | -10/Subcaves | Ambushed by Subdwellers from Twisted Machinery 1500 | -10/Subcaves | Continued accompanying wandering Federalists (5) 1673 | -10/Subcaves | Discovered new exit (range 10) 1845 | -10/Subcaves | Disturbed a concealed Subdweller 2700 | -10/Subcaves | Discovered new exit (range 14) 2739 | -10/Subcaves | A swath of the cavern ceiling suddenly collapsed 2748 | -10/Subcaves | Learned Materials stockpile data 2928 | -10/Subcaves | A swath of the cavern ceiling suddenly collapsed 3222 | -10/Subcaves | Discovered new exit (range 7) 3225 | -10/Subcaves | Curiously followed by a Cobbler waking with a query about "LVR3C" 3294 | -10/Subcaves | Ambushed by angry Subdweller bent on revenge 3295 | -10/Subcaves | Core integrity fell below 50% 3655 | -10/Subcaves | Disturbed a concealed Subdweller 5371 | -10/Subcaves | Visited 4L-MR0's lab 5404 | -10/Subcaves | Found Power Bank 6279 | -10/Subcaves | Visited Clippyterm 6284 | -10/Subcaves | Learned Factory emergency access door positions 6581 | -10/Subcaves | Entered Materials 6581 | -8/Materials | Evolved 4 slots: Propulsion x2, Utility x2 7106 | -8/Materials | Garrison activated, responded to threat 7212 | -8/Materials | Repaired Lgt. Treads 7240 | -8/Materials | Repaired Lgt. Treads 7267 | -8/Materials | Repaired Lgt. Treads 7330 | -8/Materials | Met 7R-MNS 7368 | -8/Materials | Discovered new exit (range 16) 7825 | -8/Materials | Learned Storage trap positions 7852 | -8/Materials | Learned Factory stockpile data 7869 | -8/Materials | Learned Storage interactive machine intel 7876 | -8/Materials | Learned location of 3 exits from Factory 7877 | -8/Materials | Learned location of 2 exits from Factory 7878 | -8/Materials | Learned Factory emergency access door positions 7879 | -8/Materials | Identified exit to Factory 7882 | -8/Materials | Learned location of Zion (-6) 10152 | -8/Materials | Learned Factory stockpile data 10203 | -8/Materials | Learned Factory trap positions 10243 | -8/Materials | Learned location of 1 exit from Extension 10272 | -8/Materials | Learned location of 1 exit from Storage 10313 | -8/Materials | Learned location of Extension (-6) 10365 | -8/Materials | Learned location of 1 exit from Extension 10429 | -8/Materials | Learned location of Lower Caves (-7) 10678 | -8/Materials | Build established: Scavenger-Mutant 11054 | -8/Materials | Repaired Broken Imp. VTOL Module 11083 | -8/Materials | Repaired Hrd. Heavy Armor Plating 11115 | -8/Materials | Entered Factory 11115 | -7/Factory | Evolved 2 slots: Propulsion x1, Utility x1 11116 | -7/Factory | Caught up to 7R-MNS 11116 | -7/Factory | Identified exit to Lower Caves 11117 | -7/Factory | Identified exit to Factory 11118 | -7/Factory | Loaded intel: 128 trap records 11210 | -7/Factory | Repaired Huge Storage Unit 11517 | -7/Factory | Build established: Scavenger-Sprinter 11609 | -7/Factory | Garrison activated, responded to threat 12137 | -7/Factory | Learned 2 Upper Caves zone layouts 12167 | -7/Factory | Learned location of 2 exits from Archives 12185 | -7/Factory | Learned location of Warlord (-5) 12194 | -7/Factory | Learned location of 1 exit from Lower Caves 12218 | -7/Factory | Loaded intel: 6 recycling unit locations 12279 | -7/Factory | Entered Lower Caves 12280 | -7/Lower Caves | Identified exit to Lower Caves 12570 | -7/Lower Caves | Crushed by falling debris 12736 | -7/Lower Caves | Entered another Lower Caves area 12834 | -7/Lower Caves | Entered an active Warlord outpost 12849 | -7/Lower Caves | Learned location of Armory (-3) 12849 | -7/Lower Caves | Learned Research trap positions 12849 | -7/Lower Caves | Learned Extension terminal intel 12864 | -7/Lower Caves | Encountered a Warlord checkpoint 12866 | -7/Lower Caves | Build established: Sprinter 12913 | -7/Lower Caves | Discovered new exit (range 15) 12925 | -7/Lower Caves | Identified exit to Data Miner 12926 | -7/Lower Caves | Entered Data Miner 12926 | -7/Data Miner | Discovered new exit (range 6) 12931 | -7/Data Miner | Met Data Miner 12940 | -7/Data Miner | Learned location of Section 7 (-2) 12940 | -7/Data Miner | Acquired the access code to Warlord's prototype stash 12945 | -7/Data Miner | Received God Mode back door access code from Data Miner 12953 | -7/Data Miner | Identified exit to Proximity Caves 12953 | -7/Data Miner | Entered Proximity Caves 12965 | -6/Proximity Caves | Learned Factory security intel 13012 | -6/Proximity Caves | Learned 8 Factory zone layouts 13105 | -6/Proximity Caves | Discovered exit to Factory (range 15) 13108 | -6/Proximity Caves | Entered Factory 13108 | -6/Factory | Evolved 2 slots: Utility x2 13109 | -6/Factory | Identified exit to Extension 13110 | -6/Factory | Identified exit to Lower Caves 13235 | -6/Factory | Fabricated Imp. Cesium-ion Thruster? 13293 | -6/Factory | Discovered new exit (range 4) 13294 | -6/Factory | Identified exit to Factory 13344 | -6/Factory | Fabricated Combat Drone Bay? 13462 | -6/Factory | Manually triggered Chute Trap 13462 | -6/Factory | Sucked down chute 13462 | -6/Factory | Entered Waste 13462 | -6/Waste | The area was eerily silent 13503 | -6/Waste | Discovered new exit (range 10) 13512 | -6/Waste | A Compactor rumbled back to life 13512 | -6/Waste | Spotted C-40 Crusher 13522 | -6/Waste | Identified exit to Factory 13522 | -6/Waste | Entered Factory 13683 | -6/Factory | Build established: Hacker-Sprinter 13737 | -6/Factory | Repaired Imp. Light Armor Plating 14125 | -6/Factory | Learned Extension emergency access door positions 14172 | -6/Factory | Learned Hub_04(d) security intel 14172 | -6/Factory | Discovered exit to Factory (range 12) 14210 | -6/Factory | Learned Extension stockpile data 14214 | -6/Factory | Discovered exit to Factory (range 15) 14237 | -6/Factory | Learned Extension emergency access door positions 14255 | -6/Factory | Loaded intel: 100 trap records 14264 | -6/Factory | Learned Extension emergency access door positions 14273 | -6/Factory | Learned Extension trap positions 14299 | -6/Factory | Entered Extension 14300 | -6/Extension | Identified exit to Cetus 14301 | -6/Extension | Loaded intel: 10 trap records 14303 | -6/Extension | Loaded intel: 16 terminal locations 14472 | -6/Extension | Build established: Sprinter 14502 | -6/Extension | Rescued a captive Derelict 14506 | -6/Extension | Rescued a captive Derelict 14596 | -6/Extension | Rescued a captive Derelict 14598 | -6/Extension | Rescued a captive Derelict 14737 | -6/Extension | Rescued a captive Derelict 14755 | -6/Extension | Rescued a captive Derelict 15004 | -6/Extension | Rescued a captive Derelict 15005 | -6/Extension | Rescued A7 15071 | -6/Extension | Build established: Commander-Sprinter 15074 | -6/Extension | Discovered exit to Factory (range 10) 15124 | -6/Extension | Entered Cetus 15124 | -6/Cetus | Accompanied by 12 allies (A7) 15129 | -6/Cetus | Acquired a Cetus Manufacturing Module code from A7 15147 | -6/Cetus | Spotted Cetus Guard 15147 | -6/Cetus | Spotted Cetus Guard 15151 | -6/Cetus | Spotted Cetus Guard 15154 | -6/Cetus | Spotted Cetus Guard 15158 | -6/Cetus | Allies destroyed Cetus Guard 15167 | -6/Cetus | Allies destroyed Cetus Guard 15172 | -6/Cetus | Rewired Cetus Guard 15223 | -6/Cetus | Started Cetus Manufacturing Module 15227 | -6/Cetus | Discovered new exit (range 15) 15248 | -6/Cetus | Manufactured an Enhanced Grunt 15273 | -6/Cetus | Manufactured an Enhanced Grunt 15298 | -6/Cetus | Manufactured an Enhanced Grunt 15301 | -6/Cetus | Spotted Cetus Guard 15301 | -6/Cetus | Spotted Cetus Guard 15306 | -6/Cetus | Allies destroyed Cetus Guard 15310 | -6/Cetus | Allies destroyed Cetus Guard 15312 | -6/Cetus | Discovered exit to Factory (range 16) 15314 | -6/Cetus | Met Revision 17 15323 | -6/Cetus | Manufactured an Enhanced Grunt 15348 | -6/Cetus | Manufactured an Enhanced Grunt 15384 | -6/Cetus | Identified exit to Archives 15400 | -6/Cetus | Entered Archives 15400 | -6/Archives | Accompanied by 14 allies (A7) 15401 | -6/Archives | Identified exit to Hub_04(d) 15578 | -6/Archives | Discovered exit to Hub_04(d) (range 13) 15746 | -6/Archives | Build established: Commander-Mutant 16830 | -6/Archives | Entered Hub_04(d) 16830 | -6/Hub_04(d) | Accompanied by 12 allies 16947 | -6/Hub_04(d) | Discovered exit to Factory (range 9) 17010 | -6/Hub_04(d) | Lost 3 allies 17089 | -6/Hub_04(d) | Build established: Commander-Sprinter 17319 | -6/Hub_04(d) | Discovered exit to Factory (range 18) 17321 | -6/Hub_04(d) | Allies destroyed B-75 Beast 17343 | -6/Hub_04(d) | Found Prototype Device 17343 | -6/Hub_04(d) | Identified Exp. Thermal Shield 17351 | -6/Hub_04(d) | Lost 3 allies 17399 | -6/Hub_04(d) | Discovered exit to Factory (range 8) 17430 | -6/Hub_04(d) | Discovered exit to Factory (range 8) 17654 | -6/Hub_04(d) | Network Hub disabled 17654 | -6/Hub_04(d) | Network Hub disabled 17667 | -6/Hub_04(d) | Spotted Lightning 17700 | -6/Hub_04(d) | Spotted Lightning 17700 | -6/Hub_04(d) | Spotted Lightning 17717 | -6/Hub_04(d) | Network Hub disabled 17721 | -6/Hub_04(d) | Network Hub disabled 17744 | -6/Hub_04(d) | Spotted Lightning 17744 | -6/Hub_04(d) | Spotted Lightning 17745 | -6/Hub_04(d) | Spotted Lightning 17746 | -6/Hub_04(d) | Entered Factory 17746 | -5/Factory | Evolved 2 slots: Utility x2 17747 | -5/Factory | Identified exit to Upper Caves 17748 | -5/Factory | Lost 3 allies 18007 | -5/Factory | Self-destructed Last Messages --------------- >>Load(Cld. Cesium-ion Thruster) Uploading Cld. Cesium-ion Thruster schematic... Loaded successfully: Cld. Cesium-ion Thruster Rating: 5p Time: 152 Initiate build sequence. >>Force(Recompile) RECOMPILED[Authchip [Propulsion]] 17953_ ALERT: Suspicious activity at Fabricator F001. Dispatching Investigation squad. 17955_ Dropped Lgt. Angular Momentum Engine. 17955_ Acquired Authchip [Propulsion]. 17997_ Lgt. Angular Momentum Engine severed. 17998_ Acquired Lgt. Angular Momentum Engine. 18000_ Imp. Light Armor Plating severed. 18000_ Acquired Imp. Light Armor Plating. 18000_ Imp. Light Armor Plating severed. 18003_ Knocked back. 18003_ U-05 Engineer builds a Wall. Map ----- +----------------------------------------------------+ | # ####### ???????????????????? | | ### #??????????????????????????? | | #??????????????????????????? | | ##?????????????????????????? | | T#???????? ???? #????????? | | #???# """"""""" #????????? | | ##???# #????????? | | ### #????# """"""""" #????????? | | ??# #????# #????????? | | ??# #????# """"""""" #????????? | | ??# #????# #????????? | | ??# #????# !#????????? | | ### #????# " " #????????? | | # #????# "R" #????????? | | " # #????# """ #????????? | | " # ############+#########?????? | | " # #?????? | | " # #?????? | | " + #?????? | | " # #?????? | | " + #?????? | | " ### ############# #### #?????? | | " #?# #???????????# #??# #?????? | | #?# #???????????# #??# #?????? | | #?# #???????????# #??# #?????? | | ###?# #???????????# #??# @ #?????? | | ????# #############+#### c #?????? | | ????# # # #?????? | | ????# # ! """ """ #c #?????? | | ##??# # ] """ """ # #?????? | | #??# #"" """ """ ! # #?????? | | #### #"" # #?????? | | + #G """ """ #c #?????? | | # #"" """ """ c #?????? | | # #"" """ """ # #?????? | | # # #u #?????? | | ##### ########### # #?????? | | ! # # """ !# ] #?????? | | " + / """ # ###???? | | Y # # """ !" T#???? | | " # # # ""#???? | | # # # """ """ ###???? | | # # [# "T """ #?????? | | ##### # ! # """ """ # #?????? | | ????# ######## # #?????? | | ????# #???############## #?????? | | ????# #???# # #?????? | | ????# #???# + #?????? | | ##### #???# # #?????? | | # #???# # #?????? | +----------------------------------------------------+ Best States ------------- Heat Dissipation 64 Energy Generation 18 Energy Capacity 290 Matter Stores 300 Matter Capacity 300 Sight Range 16 Robot Scan Range 16 Terrain Scan Density 10 ECM Strength 1 Armor Coverage 800 Resistance: TH 20 Utility Shielding 90 Evasion (%) 75 Core Analysis 6 Armor Integrity Analysis 30 Recoil Reduction 4 Offensive Hacking 24 Defensive Hacking 12 Authchip Count 2 Trap Extractor Capacity 6 Item Schematics ----------------- Multitool | -8/Materials | Scanalyzed Arm. Treads | -8/Materials | Scanalyzed Reactive Plating | -8/Materials | Scanalyzed Imp. VTOL Module | -8/Materials | Scanalyzed Hacking Suite | -8/Materials | Scanalyzed Imp. Cesium-ion Thruster | -7/Factory | Scanalyzed Huge Storage Unit | -7/Factory | Scanalyzed ECM Suite | -7/Factory | Scanalyzed Combat Drone Bay | -7/Data Miner | Free Lgt. Regenerative Plating | -7/Data Miner | Free Cld. Cesium-ion Thruster | -7/Data Miner | Free Exp. Targeting Computer | -7/Data Miner | Free Imp. Lightning Gun | -7/Data Miner | Free Adv. Drone Bay | -7/Data Miner | Free Antigrav System | -7/Data Miner | Free Imp. Remote Datajack | -7/Data Miner | Free Exp. Utility Shielding | -6/Factory | Scanalyzed Robot Schematics ------------------ X-67 Chaingunner | -7/Data Miner | Free G-47 Trooper | -7/Data Miner | Free R-10 Processor | -7/Data Miner | Free E-15 Imp | -7/Data Miner | Free M-22 Extractor | -7/Data Miner | Free Fabricated ------------ Imp. Cesium-ion Thruster | x1 | -6/Factory | Authchip Combat Drone Bay | x1 | -6/Factory | Authchip Repaired ---------- Lgt. Treads | 27% | -8/Materials Lgt. Treads | 38% | -8/Materials Lgt. Treads | 47% | -8/Materials Imp. VTOL Module | 99% | -8/Materials | Broken Hrd. Heavy Armor Plating | 55% | -8/Materials Huge Storage Unit | 52% | -7/Factory Imp. Light Armor Plating | 40% | -6/Factory Alien Tech Used ----------------- None Achievements -------------- None Challenges ------------ None Game ------ Seed DisruptorCannonManipulator Manual? 0 Play Time 03:01:01 Cumulative 448.2 hours Start 2024.11.09 @ 20:02:56 End 2024.11.11 @ 12:32:05 Sessions 13 Manual Loads 0 Difficulty Rogue Special Mode None Game No. 301 Rogue 296 Adventurer 5 Explorer 0 Win Type - Total 11 Types 5/0/5/0/0/0/1/0/0 Lore% 79 Gallery% 89 Achievement% 75 Wizard Run 0 Options --------- Layout 2 ASCII 0 Keyboard 0 Movement Mouse Keybinds 0 Fullscreen 2 Font 24/Smallcaps Map View 50x44 Zoom Use 0% Tactical HUD 1 Map Filters NONE Filters NONE Steam 1 RUN: 43951847-f070-49d4-94b7-ad27f0630309